[Event "*** Titled Tuesday Blitz"]
[Site "Chess.com"]
[Date "2020.04.07"]
[Round "4"]
[White "IMTominho"]
[Black "FabianoCaruana"]
[Result "1-0"]
[WhiteElo "2808"]
[BlackElo "2992"]
[TimeControl "180+1"]
[EndTime "13:42:24 PDT"]
[Termination "IMTominho won by resignation"]

1. d4 {[%clk 0:03:00.9]} 1... d5 {[%clk 0:02:49.2]} 2. c4 {[%clk 0:03:00.5]}
2... c6 {[%clk 0:02:48.6]} 3. Nf3 {[%clk 0:02:59.6]} 3... Nf6 {[%clk 0:02:48.9]}
4. Nc3 {[%clk 0:02:58.3]} 4... dxc4 {[%clk 0:02:49.1]} 5. a4 {[%clk 0:02:55.7]}
5... Bf5 {[%clk 0:02:49]} 6. Ne5 {[%clk 0:02:55]} 6... e6 {[%clk 0:02:47]} 7. e3
{[%clk 0:02:46.2]} 7... Bb4 {[%clk 0:02:41.3]} 8. Bxc4 {[%clk 0:02:43.8]} 8...
O-O {[%clk 0:02:41.4]} 9. O-O {[%clk 0:02:42.6]} 9... Nbd7 {[%clk 0:02:40.8]}
10. Nxd7 {[%clk 0:02:35.3]} 10... Nxd7 {[%clk 0:02:41.7]} 11. Qe2 {[%clk
0:02:30.7]} 11... Bg6 {[%clk 0:02:39.5]} 12. Rd1 {[%clk 0:02:28.5]} 12... Qa5
{[%clk 0:02:37.8]} 13. Na2 {[%clk 0:02:21.1]} 13... Bd6 {[%clk 0:02:37.5]} 14.
e4 {[%clk 0:02:15]} 14... Qc7 {[%clk 0:02:29.1]} 15. h3 {[%clk 0:02:10.6]} 15...
e5 {[%clk 0:02:28.1]} 16. dxe5 {[%clk 0:02:08.1]} 16... Nxe5 {[%clk 0:02:20.5]}
17. Bb3 {[%clk 0:02:07.2]} 17... Rfe8 {[%clk 0:02:18]} 18. Nc3 {[%clk
0:02:00.6]} 18... Bc5 {[%clk 0:02:10.8]} 19. Be3 {[%clk 0:01:57.9]} 19... Bxe3
{[%clk 0:02:03.8]} 20. Qxe3 {[%clk 0:01:58.8]} 20... Nd7 {[%clk 0:02:03.5]} 21.
Rac1 {[%clk 0:01:53.5]} 21... Nf6 {[%clk 0:01:59.6]} 22. Nb5 {[%clk 0:01:49.5]}
22... Qb6 {[%clk 0:01:54.5]} 23. Qxb6 {[%clk 0:01:47.1]} 23... axb6 {[%clk
0:01:55.4]} 24. Nc7 {[%clk 0:01:47.7]} 24... Nxe4 {[%clk 0:01:54.5]} 25. Nxe8
{[%clk 0:01:41.1]} 25... Rxe8 {[%clk 0:01:53.9]} 26. Rd7 {[%clk 0:01:37.5]}
26... Rb8 {[%clk 0:01:50.5]} 27. Rcd1 {[%clk 0:01:29.2]} 27... Kf8 {[%clk
0:01:50.2]} 28. Rd8+ {[%clk 0:01:28.4]} 28... Rxd8 {[%clk 0:01:50.3]} 29. Rxd8+
{[%clk 0:01:29.3]} 29... Ke7 {[%clk 0:01:50.9]} 30. Rb8 {[%clk 0:01:27.3]} 30...
Nd6 {[%clk 0:01:41.4]} 31. Kf1 {[%clk 0:01:22.6]} 31... h5 {[%clk 0:01:37.6]}
32. h4 {[%clk 0:01:19.9]} 32... Bd3+ {[%clk 0:01:35.1]} 33. Ke1 {[%clk
0:01:19.6]} 33... g6 {[%clk 0:01:36]} 34. Kd2 {[%clk 0:01:15.6]} 34... Bf5
{[%clk 0:01:34.3]} 35. Ke3 {[%clk 0:01:11]} 35... Bd7 {[%clk 0:01:29.3]} 36. g3
{[%clk 0:01:06.7]} 36... Bc8 {[%clk 0:01:29.3]} 37. Kd4 {[%clk 0:01:03.8]} 37...
Nf5+ {[%clk 0:01:22.2]} 38. Ke5 {[%clk 0:01:01.9]} 38... Nd6 {[%clk 0:01:22.3]}
39. Ba2 {[%clk 0:00:57.8]} 39... Bf5 {[%clk 0:01:19.1]} 40. b4 {[%clk
0:00:53.5]} 40... Bc2 {[%clk 0:01:18.4]} 41. a5 {[%clk 0:00:51.3]} 41... bxa5
{[%clk 0:01:19]} 42. bxa5 {[%clk 0:00:52.2]} 42... Bd3 {[%clk 0:01:19.3]} 43.
Kd4 {[%clk 0:00:50.5]} 43... Ba6 {[%clk 0:01:16.9]} 44. Kc5 {[%clk 0:00:47.7]}
44... Kd7 {[%clk 0:01:11.9]} 45. f3 {[%clk 0:00:36.5]} 45... Be2 {[%clk
0:01:09.3]} 46. Kb6 {[%clk 0:00:30.9]} 46... Bxf3 {[%clk 0:01:05.4]} 47. Bxf7
{[%clk 0:00:23.7]} 47... Be4 {[%clk 0:01:04.8]} 48. Bb3 {[%clk 0:00:22]} 48...
Nc8+ {[%clk 0:00:57.9]} 49. Kc5 {[%clk 0:00:16.2]} 49... Kc7 {[%clk 0:00:54]}
50. Ra8 {[%clk 0:00:14.7]} 50... Bf5 {[%clk 0:00:54.6]} 51. Bc4 {[%clk
0:00:13.9]} 51... Nd6 {[%clk 0:00:53.8]} 52. Rh8 {[%clk 0:00:11.6]} 52... Ne4+
{[%clk 0:00:53.2]} 53. Kd4 {[%clk 0:00:11.5]} 53... Nxg3 {[%clk 0:00:52]} 54.
Rh7+ {[%clk 0:00:12]} 54... Kb8 {[%clk 0:00:47.8]} 55. Kc5 {[%clk 0:00:11.6]}
55... Ne4+ {[%clk 0:00:48.1]} 56. Kb6 {[%clk 0:00:11.4]} 56... Nd6 {[%clk
0:00:48.6]} 57. Rh8+ {[%clk 0:00:11.8]} 57... Nc8+ {[%clk 0:00:48.3]} 58. Kc5
{[%clk 0:00:12.3]} 58... Ka7 {[%clk 0:00:39.5]} 59. Re8 {[%clk 0:00:11.3]} 59...
Bd7 {[%clk 0:00:36.2]} 60. Rd8 {[%clk 0:00:10.8]} 60... Bf5 {[%clk 0:00:36.4]}
61. Re8 {[%clk 0:00:10.8]} 61... Bd7 {[%clk 0:00:36.8]} 62. Rg8 {[%clk 0:00:11]}
62... Bf5 {[%clk 0:00:35.6]} 63. Rg7 {[%clk 0:00:11.4]} 63... Kb8 {[%clk
0:00:35.1]} 64. Bf7 {[%clk 0:00:11.3]} 64... Ne7 {[%clk 0:00:34]} 65. Be8 {[%clk
0:00:11.7]} 65... Nd5 {[%clk 0:00:32.9]} 66. Bxg6 {[%clk 0:00:11.2]} 66... Bg4
{[%clk 0:00:31.9]} 67. Rg8+ {[%clk 0:00:11]} 67... Kc7 {[%clk 0:00:31.5]} 68.
Rg7+ {[%clk 0:00:10.8]} 68... Kb8 {[%clk 0:00:30.6]} 69. Rh7 {[%clk 0:00:11.3]}
69... Nf4 {[%clk 0:00:30.6]} 70. Be4 {[%clk 0:00:10.5]} 70... Ka7 {[%clk
0:00:19.2]} 71. Bxc6 {[%clk 0:00:09.1]} 71... Ka6 {[%clk 0:00:18.7]} 72. Bxb7+
{[%clk 0:00:08.1]} 72... Kxa5 {[%clk 0:00:18.6]} 73. Be4 {[%clk 0:00:07.5]}
73... Ka4 {[%clk 0:00:16.9]} 74. Rf7 {[%clk 0:00:07.7]} 74... Ne2 {[%clk
0:00:15.3]} 75. Bd5 {[%clk 0:00:07.1]} 75... Ka3 {[%clk 0:00:12.1]} 76. Bf3
{[%clk 0:00:07]} 76... Ng3 {[%clk 0:00:09.7]} 77. Bxg4 {[%clk 0:00:04.5]} 77...
hxg4 {[%clk 0:00:10.6]} 78. Rf4 {[%clk 0:00:04.9]} 78... Ne2 {[%clk 0:00:09.1]}
79. Rxg4 {[%clk 0:00:05.1]} 1-0

[Event "*** Titled Tuesday Blitz"]
[Site "Chess.com"]
[Date "2020.04.07"]
[Round "4"]
[White "Sawyer2908"]
[Black "anesar92"]
[Result "1/2-1/2"]
[WhiteElo "2536"]
[BlackElo "2727"]
[TimeControl "180+1"]
[EndTime "13:42:27 PDT"]
[Termination "Game drawn - insufficient material"]

1. e4 {[%clk 0:03:00.9]} 1... c5 {[%clk 0:02:59.2]} 2. Nf3 {[%clk 0:03:00.5]}
2... d6 {[%clk 0:02:59.9]} 3. Bb5+ {[%clk 0:02:59.9]} 3... Nc6 {[%clk
0:02:59.4]} 4. O-O {[%clk 0:02:58.4]} 4... Bd7 {[%clk 0:02:58]} 5. c3 {[%clk
0:02:57.4]} 5... Nf6 {[%clk 0:02:57.9]} 6. Re1 {[%clk 0:02:56.9]} 6... a6 {[%clk
0:02:58.4]} 7. Ba4 {[%clk 0:02:56.5]} 7... b5 {[%clk 0:02:55.4]} 8. Bc2 {[%clk
0:02:56.4]} 8... e5 {[%clk 0:02:55.2]} 9. h3 {[%clk 0:02:54]} 9... Be7 {[%clk
0:02:55.2]} 10. d4 {[%clk 0:02:52.5]} 10... O-O {[%clk 0:02:55.5]} 11. Be3
{[%clk 0:02:45.8]} 11... Qc7 {[%clk 0:02:54.8]} 12. Nbd2 {[%clk 0:02:42.2]}
12... Rac8 {[%clk 0:02:45.6]} 13. d5 {[%clk 0:02:41.7]} 13... Nd8 {[%clk
0:02:43.7]} 14. a4 {[%clk 0:02:36.1]} 14... Ne8 {[%clk 0:02:36.8]} 15. axb5
{[%clk 0:02:29]} 15... axb5 {[%clk 0:02:36.7]} 16. Nf1 {[%clk 0:02:28.6]} 16...
g6 {[%clk 0:02:33.4]} 17. Bh6 {[%clk 0:02:27.8]} 17... Ng7 {[%clk 0:02:33.4]}
18. Ng3 {[%clk 0:02:27.2]} 18... f6 {[%clk 0:02:33.6]} 19. Ra6 {[%clk
0:02:16.5]} 19... Nf7 {[%clk 0:02:31.2]} 20. Bd2 {[%clk 0:02:10.9]} 20... Ra8
{[%clk 0:02:30.6]} 21. Rxa8 {[%clk 0:02:03.9]} 21... Rxa8 {[%clk 0:02:31.5]} 22.
Bc1 {[%clk 0:01:49.6]} 22... Ra1 {[%clk 0:02:23.7]} 23. Qe2 {[%clk 0:01:47.4]}
23... Qa7 {[%clk 0:02:22.8]} 24. Nd2 {[%clk 0:01:39.5]} 24... Qa8 {[%clk
0:02:11.7]} 25. Nb3 {[%clk 0:01:36.8]} 25... Ra7 {[%clk 0:02:10.5]} 26. f4
{[%clk 0:01:29.9]} 26... exf4 {[%clk 0:02:09.2]} 27. Bxf4 {[%clk 0:01:29.3]}
27... Ne5 {[%clk 0:02:09.7]} 28. Nd2 {[%clk 0:01:15.5]} 28... Ra2 {[%clk
0:02:05.3]} 29. Rb1 {[%clk 0:01:09.9]} 29... Qb8 {[%clk 0:01:55.1]} 30. Nf3
{[%clk 0:01:05.6]} 30... b4 {[%clk 0:01:30.9]} 31. Nxe5 {[%clk 0:01:03.4]} 31...
fxe5 {[%clk 0:01:31.8]} 32. Bd2 {[%clk 0:01:02.3]} 32... Qa7 {[%clk 0:01:11.3]}
33. Kh2 {[%clk 0:00:53.1]} 33... bxc3 {[%clk 0:01:08.6]} 34. Bxc3 {[%clk
0:00:50.5]} 34... Bg5 {[%clk 0:01:05.7]} 35. Bd2 {[%clk 0:00:37]} 35... Bxd2
{[%clk 0:01:01.1]} 36. Qxd2 {[%clk 0:00:36.4]} 36... Qb8 {[%clk 0:01:01.4]} 37.
Qc3 {[%clk 0:00:35]} 37... Ne8 {[%clk 0:00:53.9]} 38. b4 {[%clk 0:00:30]} 38...
cxb4 {[%clk 0:00:51.4]} 39. Rxb4 {[%clk 0:00:30]} 39... Rxc2 {[%clk 0:00:48.3]}
40. Qb3 {[%clk 0:00:23.2]} 40... Qc7 {[%clk 0:00:44.1]} 41. Rb7 {[%clk
0:00:22.2]} 41... Qc3 {[%clk 0:00:43.7]} 42. Qxc3 {[%clk 0:00:20.3]} 42... Rxc3
{[%clk 0:00:43.7]} 43. Rxd7 {[%clk 0:00:20.9]} 43... Rc7 {[%clk 0:00:31.5]} 44.
Rd8 {[%clk 0:00:19.2]} 44... Kf7 {[%clk 0:00:31.4]} 45. Ra8 {[%clk 0:00:18.7]}
45... Nf6 {[%clk 0:00:29.7]} 46. Ra6 {[%clk 0:00:18.5]} 46... Ke7 {[%clk
0:00:29.6]} 47. Rb6 {[%clk 0:00:17.5]} 47... h5 {[%clk 0:00:28.3]} 48. h4 {[%clk
0:00:15.1]} 48... Rc3 {[%clk 0:00:22.4]} 49. Rb7+ {[%clk 0:00:14]} 49... Kf8
{[%clk 0:00:22]} 50. Rb8+ {[%clk 0:00:13]} 50... Kg7 {[%clk 0:00:21.2]} 51. Rb7+
{[%clk 0:00:13.1]} 51... Kh6 {[%clk 0:00:21.5]} 52. Rf7 {[%clk 0:00:12.9]} 52...
Ng4+ {[%clk 0:00:20.2]} 53. Kh3 {[%clk 0:00:13.1]} 53... g5 {[%clk 0:00:10]} 54.
hxg5+ {[%clk 0:00:11.8]} 54... Kxg5 {[%clk 0:00:10.9]} 55. Rf5+ {[%clk
0:00:12.2]} 55... Kg6 {[%clk 0:00:10.6]} 56. Kh4 {[%clk 0:00:09.6]} 56... Nf6
{[%clk 0:00:07.6]} 57. Nxh5 {[%clk 0:00:09.1]} 57... Nxe4 {[%clk 0:00:05]} 58.
Rf8 {[%clk 0:00:09]} 58... Kh7 {[%clk 0:00:03.5]} 59. Rf7+ {[%clk 0:00:08.2]}
59... Kg6 {[%clk 0:00:03]} 60. Rg7+ {[%clk 0:00:08]} 60... Kh6 {[%clk
0:00:03.4]} 61. g4 {[%clk 0:00:06.8]} 61... Rc1 {[%clk 0:00:03.6]} 62. g5+
{[%clk 0:00:05.2]} 62... Nxg5 {[%clk 0:00:03]} 63. Rxg5 {[%clk 0:00:04.8]} 63...
Rh1+ {[%clk 0:00:03.5]} 64. Kg4 {[%clk 0:00:04.2]} 64... Rg1+ {[%clk 0:00:04.1]}
65. Kh4 {[%clk 0:00:01.9]} 65... Rxg5 {[%clk 0:00:03.9]} 66. Nf6 {[%clk
0:00:02.5]} 66... e4 {[%clk 0:00:02.3]} 67. Nxe4 {[%clk 0:00:01.9]} 67... Rxd5
{[%clk 0:00:02.3]} 68. Kg4 {[%clk 0:00:01.6]} 68... Kg6 {[%clk 0:00:01]} 69. Kf4
{[%clk 0:00:01.8]} 69... Rd4 {[%clk 0:00:01.5]} 70. Ke3 {[%clk 0:00:01.9]} 70...
Kf5 {[%clk 0:00:02.3]} 71. Kxd4 {[%clk 0:00:01.8]} 71... d5 {[%clk 0:00:03.1]}
72. Kxd5 {[%clk 0:00:01.5]} 1/2-1/2

[Event "*** Titled Tuesday Blitz"]
[Site "Chess.com"]
[Date "2020.04.07"]
[Round "4"]
[White "SPEEDSKATER"]
[Black "Sebastian"]
[Result "0-1"]
[WhiteElo "2788"]
[BlackElo "3021"]
[TimeControl "180+1"]
[EndTime "13:42:30 PDT"]
[Termination "Sebastian won by checkmate"]

1. d4 {[%clk 0:03:00.9]} 1... Nf6 {[%clk 0:02:59.4]} 2. c4 {[%clk 0:03:00.8]}
2... e6 {[%clk 0:02:59.6]} 3. Nf3 {[%clk 0:03:00.5]} 3... d5 {[%clk 0:02:59.5]}
4. Nc3 {[%clk 0:03:00.1]} 4... c5 {[%clk 0:02:58.6]} 5. cxd5 {[%clk 0:02:58.7]}
5... Nxd5 {[%clk 0:02:59.5]} 6. e4 {[%clk 0:02:58.6]} 6... Nxc3 {[%clk 0:03:00]}
7. bxc3 {[%clk 0:02:59.5]} 7... cxd4 {[%clk 0:03:00.7]} 8. cxd4 {[%clk
0:02:59.2]} 8... Bb4+ {[%clk 0:03:01.1]} 9. Bd2 {[%clk 0:02:59.1]} 9... Bxd2+
{[%clk 0:03:01.6]} 10. Qxd2 {[%clk 0:03:00]} 10... O-O {[%clk 0:03:01.8]} 11.
Bd3 {[%clk 0:02:55.9]} 11... Nc6 {[%clk 0:02:58.3]} 12. Qc3 {[%clk 0:02:55.7]}
12... Qd6 {[%clk 0:02:35.1]} 13. Rd1 {[%clk 0:02:38.8]} 13... Rd8 {[%clk
0:02:31.6]} 14. Bb1 {[%clk 0:02:33.2]} 14... b6 {[%clk 0:02:23.9]} 15. O-O
{[%clk 0:02:30.6]} 15... Ba6 {[%clk 0:02:19]} 16. Rfe1 {[%clk 0:02:28.9]} 16...
Rac8 {[%clk 0:02:19]} 17. Qe3 {[%clk 0:02:28.4]} 17... Nb4 {[%clk 0:02:02.4]}
18. Rc1 {[%clk 0:02:03]} 18... h6 {[%clk 0:02:01.4]} 19. h4 {[%clk 0:01:42.3]}
19... Rxc1 {[%clk 0:01:46.6]} 20. Rxc1 {[%clk 0:01:41.4]} 20... Rc8 {[%clk
0:01:47.1]} 21. Rxc8+ {[%clk 0:01:32]} 21... Bxc8 {[%clk 0:01:48]} 22. a3 {[%clk
0:01:16.6]} 22... Nc6 {[%clk 0:01:42.1]} 23. Qd3 {[%clk 0:01:16.7]} 23... Kf8
{[%clk 0:00:53.9]} 24. e5 {[%clk 0:00:42.8]} 24... Qd5 {[%clk 0:00:53.6]} 25.
Qh7 {[%clk 0:00:36.9]} 25... Nxd4 {[%clk 0:00:50.2]} 26. Be4 {[%clk 0:00:23.3]}
26... Nxf3+ {[%clk 0:00:42.4]} 27. Bxf3 {[%clk 0:00:24.2]} 27... Qc4 {[%clk
0:00:27.2]} 28. g3 {[%clk 0:00:19.7]} 28... Ba6 {[%clk 0:00:22]} 29. Bg2 {[%clk
0:00:16.8]} 29... Qc1+ {[%clk 0:00:12.3]} 30. Kh2 {[%clk 0:00:17.1]} 30... g6
{[%clk 0:00:10.8]} 31. Qh8+ {[%clk 0:00:16.2]} 31... Ke7 {[%clk 0:00:11.3]} 32.
Qa8 {[%clk 0:00:15.4]} 32... Qc7 {[%clk 0:00:09.7]} 33. Qh8 {[%clk 0:00:15.8]}
33... Qc5 {[%clk 0:00:06]} 34. Qf6+ {[%clk 0:00:15]} 34... Ke8 {[%clk
0:00:05.9]} 35. Qh8+ {[%clk 0:00:14.8]} 35... Kd7 {[%clk 0:00:06.3]} 36. Qf6
{[%clk 0:00:14.8]} 36... Qe7 {[%clk 0:00:05.1]} 37. Qf3 {[%clk 0:00:15]} 37...
Bc8 {[%clk 0:00:02.6]} 38. Qa8 {[%clk 0:00:14.6]} 38... Kd8 {[%clk 0:00:02.4]}
39. Qf3 {[%clk 0:00:13.5]} 39... Qc7 {[%clk 0:00:02.7]} 40. Qf6+ {[%clk
0:00:12.8]} 40... Qe7 {[%clk 0:00:03.3]} 41. Qf3 {[%clk 0:00:12.3]} 41... h5
{[%clk 0:00:02.5]} 42. Qf4 {[%clk 0:00:11]} 42... Qc7 {[%clk 0:00:02.6]} 43.
Qf6+ {[%clk 0:00:10.8]} 43... Qe7 {[%clk 0:00:03.1]} 44. Qf3 {[%clk 0:00:10.1]}
44... b5 {[%clk 0:00:02.8]} 45. Qd3+ {[%clk 0:00:09.8]} 45... Qd7 {[%clk
0:00:02.4]} 46. Qe3 {[%clk 0:00:09.7]} 46... a6 {[%clk 0:00:02.8]} 47. Qc5
{[%clk 0:00:09.4]} 47... Qc7 {[%clk 0:00:03.4]} 48. Qd4+ {[%clk 0:00:09.5]}
48... Ke8 {[%clk 0:00:02.9]} 49. f4 {[%clk 0:00:09.8]} 49... Bb7 {[%clk
0:00:03]} 50. Bxb7 {[%clk 0:00:09.1]} 50... Qxb7 {[%clk 0:00:03.5]} 51. Qc3
{[%clk 0:00:07.9]} 51... Kd8 {[%clk 0:00:02.7]} 52. Kg1 {[%clk 0:00:07.4]} 52...
Qc7 {[%clk 0:00:02.5]} 53. Qb4 {[%clk 0:00:07.7]} 53... Qb6+ {[%clk 0:00:01.7]}
54. Kf1 {[%clk 0:00:07.6]} 54... Qc6 {[%clk 0:00:01.9]} 55. Qf8+ {[%clk
0:00:07.5]} 55... Qe8 {[%clk 0:00:02.1]} 56. Qd6+ {[%clk 0:00:08]} 56... Qd7
{[%clk 0:00:02.8]} 57. Qxa6 {[%clk 0:00:07]} 57... Qd1+ {[%clk 0:00:02.5]} 58.
Kf2 {[%clk 0:00:07.4]} 58... Qd2+ {[%clk 0:00:03.2]} 59. Kf3 {[%clk 0:00:07]}
59... Qd3+ {[%clk 0:00:03.5]} 60. Kf2 {[%clk 0:00:07.3]} 60... Qd2+ {[%clk
0:00:03.7]} 61. Kf3 {[%clk 0:00:07.5]} 61... Qd3+ {[%clk 0:00:03.8]} 62. Kf2
{[%clk 0:00:07.8]} 62... Qd4+ {[%clk 0:00:04]} 63. Kf3 {[%clk 0:00:07.8]} 63...
Qd1+ {[%clk 0:00:03.7]} 64. Kf2 {[%clk 0:00:07.9]} 64... Qc2+ {[%clk 0:00:03.6]}
65. Kf3 {[%clk 0:00:07.3]} 65... Qb3+ {[%clk 0:00:03.4]} 66. Kg2 {[%clk
0:00:07]} 66... Qd5+ {[%clk 0:00:03.2]} 67. Kh2 {[%clk 0:00:06.6]} 67... Ke7
{[%clk 0:00:03]} 68. Qa7+ {[%clk 0:00:05.8]} 68... Kf8 {[%clk 0:00:03.3]} 69.
Qe3 {[%clk 0:00:03.2]} 69... Kg7 {[%clk 0:00:03.5]} 70. Qc3 {[%clk 0:00:03]}
70... Qe4 {[%clk 0:00:02.7]} 71. Qb4 {[%clk 0:00:03]} 71... Qe2+ {[%clk
0:00:02.6]} 72. Kh3 {[%clk 0:00:02.8]} 72... Qf1+ {[%clk 0:00:02.6]} 73. Kh2
{[%clk 0:00:02.9]} 73... Qf2+ {[%clk 0:00:03.2]} 74. Kh3 {[%clk 0:00:03]} 74...
Qg1 {[%clk 0:00:03.3]} 75. Qe4 {[%clk 0:00:03.4]} 75... Qc1 {[%clk 0:00:03]} 76.
Qb4 {[%clk 0:00:02.9]} 76... Qh1# {[%clk 0:00:02.8]} 0-1

[Event "*** Titled Tuesday Blitz"]
[Site "Chess.com"]
[Date "2020.04.07"]
[Round "4"]
[White "kinga2008"]
[Black "Mbneu"]
[Result "0-1"]
[WhiteElo "1908"]
[BlackElo "2266"]
[TimeControl "180+1"]
[EndTime "13:42:43 PDT"]
[Termination "Mbneu won on time"]

1. e4 {[%clk 0:02:47.2]} 1... c5 {[%clk 0:02:46.1]} 2. Nf3 {[%clk 0:02:45.6]}
2... Nf6 {[%clk 0:02:45.3]} 3. e5 {[%clk 0:02:39.8]} 3... Nd5 {[%clk 0:02:44.9]}
4. c4 {[%clk 0:02:32.4]} 4... Nc7 {[%clk 0:02:44]} 5. Bd3 {[%clk 0:02:29.8]}
5... Nc6 {[%clk 0:02:38.3]} 6. Bc2 {[%clk 0:02:26.6]} 6... Ne6 {[%clk
0:02:27.2]} 7. O-O {[%clk 0:02:25.4]} 7... b6 {[%clk 0:02:18.7]} 8. b3 {[%clk
0:02:23.9]} 8... Bb7 {[%clk 0:02:16.3]} 9. Bb2 {[%clk 0:02:22.7]} 9... g6 {[%clk
0:02:16]} 10. d4 {[%clk 0:02:18.6]} 10... cxd4 {[%clk 0:02:15.3]} 11. Nxd4
{[%clk 0:02:17.4]} 11... Ncxd4 {[%clk 0:02:03.9]} 12. Bxd4 {[%clk 0:02:18.3]}
12... Nxd4 {[%clk 0:02:03.9]} 13. Qxd4 {[%clk 0:02:19.2]} 13... Bg7 {[%clk
0:02:03.9]} 14. f4 {[%clk 0:02:12.9]} 14... Qc7 {[%clk 0:01:56.8]} 15. Nc3
{[%clk 0:02:10.1]} 15... Qc5 {[%clk 0:01:32.9]} 16. Qxc5 {[%clk 0:02:08.7]}
16... bxc5 {[%clk 0:01:33.8]} 17. Nb5 {[%clk 0:02:07.7]} 17... Kd8 {[%clk
0:01:30.2]} 18. Rad1 {[%clk 0:02:02.6]} 18... a6 {[%clk 0:01:15]} 19. Nc3 {[%clk
0:01:57]} 19... Kc8 {[%clk 0:00:54]} 20. Nd5 {[%clk 0:01:52.7]} 20... Bxd5
{[%clk 0:00:53.3]} 21. Rxd5 {[%clk 0:01:51.3]} 21... d6 {[%clk 0:00:53.3]} 22.
exd6 {[%clk 0:01:51]} 22... Bd4+ {[%clk 0:00:45.8]} 23. Kh1 {[%clk 0:01:42.1]}
23... e6 {[%clk 0:00:45.3]} 24. d7+ {[%clk 0:01:41.5]} 24... Kc7 {[%clk
0:00:43.8]} 25. d8=Q+ {[%clk 0:01:40.7]} 25... Raxd8 {[%clk 0:00:42.7]} 26. Rxd8
{[%clk 0:01:40.5]} 26... Rxd8 {[%clk 0:00:43.1]} 27. g4 {[%clk 0:01:38]} 27...
Be3 {[%clk 0:00:38.4]} 28. f5 {[%clk 0:01:37.7]} 28... Rd2 {[%clk 0:00:35.5]}
29. fxe6 {[%clk 0:01:33.3]} 29... fxe6 {[%clk 0:00:33.2]} 30. Be4 {[%clk
0:01:31.6]} 30... e5 {[%clk 0:00:30.8]} 31. Rf7+ {[%clk 0:01:30.6]} 31... Kd6
{[%clk 0:00:30.6]} 32. Rxh7 {[%clk 0:01:27.6]} 32... Rxa2 {[%clk 0:00:30]} 33.
Bxg6 {[%clk 0:01:24.1]} 33... Bf4 {[%clk 0:00:28.7]} 34. Bf5 {[%clk 0:01:22.3]}
34... a5 {[%clk 0:00:27.2]} 35. Rd7+ {[%clk 0:01:19.9]} 35... Kc6 {[%clk
0:00:26.6]} 36. Rd1 {[%clk 0:01:15.4]} 36... Rxh2+ {[%clk 0:00:25.6]} 37. Kg1
{[%clk 0:01:14.5]} 37... Rb2 {[%clk 0:00:25.7]} 38. Be4+ {[%clk 0:01:11.3]}
38... Kb6 {[%clk 0:00:24.6]} 39. Rd6+ {[%clk 0:01:09.3]} 39... Ka7 {[%clk
0:00:21.5]} 40. Rd7+ {[%clk 0:01:09]} 40... Kb6 {[%clk 0:00:20.1]} 41. Rb7+
{[%clk 0:01:08.1]} 41... Ka6 {[%clk 0:00:20.1]} 42. Rb5 {[%clk 0:01:06]} 42...
Be3+ {[%clk 0:00:16.8]} 43. Kh1 {[%clk 0:01:05]} 43... Bd4 {[%clk 0:00:17]} 44.
Bb7+ {[%clk 0:01:01.8]} 44... Ka7 {[%clk 0:00:16.7]} 45. Bc8 {[%clk 0:01:02]}
45... Bc3 {[%clk 0:00:16.6]} 46. g5 {[%clk 0:00:48.8]} 46... Bb4 {[%clk
0:00:15.3]} 47. g6 {[%clk 0:00:47.1]} 47... Rxb3 {[%clk 0:00:15.3]} 48. g7
{[%clk 0:00:35.2]} 48... Rg3 {[%clk 0:00:15]} 49. Rb7+ {[%clk 0:00:34.1]} 49...
Ka8 {[%clk 0:00:14.8]} 50. Rf7 {[%clk 0:00:32.6]} 50... a4 {[%clk 0:00:13.4]}
51. Bf5 {[%clk 0:00:19.1]} 51... a3 {[%clk 0:00:12.4]} 52. Rf8+ {[%clk
0:00:18.7]} 52... Ka7 {[%clk 0:00:12.3]} 53. g8=Q {[%clk 0:00:11.1]} 53... Rxg8
{[%clk 0:00:11.9]} 54. Rxg8 {[%clk 0:00:12]} 54... a2 {[%clk 0:00:12.2]} 55. Rg1
{[%clk 0:00:12.5]} 55... Bc3 {[%clk 0:00:12]} 56. Rg7+ {[%clk 0:00:07.5]} 56...
Kb6 {[%clk 0:00:11.3]} 57. Rg1 {[%clk 0:00:04.7]} 57... Ka5 {[%clk 0:00:09.7]}
58. Kg2 {[%clk 0:00:04]} 58... Kb4 {[%clk 0:00:09.7]} 59. Be6 {[%clk 0:00:03.1]}
59... Kb3 {[%clk 0:00:09.2]} 60. Kf3 {[%clk 0:00:02.7]} 60... Bb2 {[%clk
0:00:07.5]} 61. Ke4 {[%clk 0:00:01.6]} 61... Kc2 {[%clk 0:00:07.6]} 62. Kd5
{[%clk 0:00:01.9]} 62... Bc1 {[%clk 0:00:07.4]} 63. Kxc5 {[%clk 0:00:02]} 63...
a1=Q {[%clk 0:00:06.4]} 64. Rg2+ {[%clk 0:00:01.4]} 64... Kc3 {[%clk 0:00:06]}
65. Rg3+ {[%clk 0:00:01.7]} 65... Kc2 {[%clk 0:00:05.3]} 66. Rg2+ {[%clk
0:00:02.6]} 66... Kd1 {[%clk 0:00:05.2]} 67. Rg3 {[%clk 0:00:03.5]} 67... Bb2
{[%clk 0:00:04.1]} 68. Bg4+ {[%clk 0:00:02.9]} 68... Kd2 {[%clk 0:00:03.9]} 69.
Rg2+ {[%clk 0:00:02.2]} 69... Ke3 {[%clk 0:00:04.1]} 70. Re2+ {[%clk 0:00:01.2]}
70... Kf4 {[%clk 0:00:04.6]} 71. Be6 {[%clk 0:00:01.8]} 71... Bd4+ {[%clk
0:00:04.9]} 72. Kc6 {[%clk 0:00:01.9]} 72... Qa6+ {[%clk 0:00:04.5]} 73. Kd5
{[%clk 0:00:02.3]} 73... Qa5+ {[%clk 0:00:04.7]} 74. Kc6 {[%clk 0:00:02.4]}
74... Qc5+ {[%clk 0:00:05]} 75. Kd7 {[%clk 0:00:01.7]} 75... Qa7+ {[%clk
0:00:04.3]} 76. Kc6 {[%clk 0:00:02]} 76... Qa6+ {[%clk 0:00:04.2]} 77. Kd7
{[%clk 0:00:02.4]} 77... Qa4+ {[%clk 0:00:03.8]} 78. Kd6 {[%clk 0:00:02.1]}
78... Kf3 {[%clk 0:00:04]} 0-1